fUSD/lending_fUSD_20250811
["ID","MTS","AMOUNT","RATE_DAILY","PERIOD"]
[378544810,1754910632232,-221.56282854,0.00015124,2]
[378544811,1754910632241,-179.84,0.00015124,2]
[378544812,1754910632251,-850.77947722,0.00015125,2]
[378544813,1754910632260,-551.12470578,0.00015144,2]
[378544814,1754910632271,-575.43,0.00015157,2]
[378544815,1754910632280,-414.79099923,0.00015164,2]
[378544816,1754910632292,-211.06900077,0.00015164,2]
[378544817,1754910632302,-156.77,0.00015168,2]
[378544818,1754910632311,-180.16079088,0.00015173,2]
[378544819,1754910632321,-250.0,0.00015174,2]
[378544820,1754910632331,-179.84,0.00015175,2]
[378544821,1754910632340,-200.0,0.00015192,2]
[378544822,1754910632349,-166.69,0.00015197,2]
[378544823,1754910632359,-179.84,0.00015225,2]
[378544824,1754910632369,-200.0,0.00015261,2]
[378544825,1754910632378,-1200.0,0.00015421,2]
[378544826,1754910632387,-23643.32627505,0.00015422,2]
[378544827,1754910632397,-663.15231303,0.00015467,2]
[378544828,1754910632406,-256.18,0.00015507,2]
[378544829,1754910632416,-150.0,0.00015516,2]
[378544830,1754910632426,-1262.597,0.00015537,2]
[378544831,1754910632435,-179.20323265,0.0001569,2]
[378544832,1754910632444,-300.0,0.00015734,2]
[378544833,1754910632453,-151.0,0.00015735,2]
[378544834,1754910632463,-151.0,0.00015735,2]
[378544835,1754910632472,-151.0,0.00015735,2]
[378544837,1754910632482,-151.0,0.00015735,2]
[378544838,1754910632491,-151.0,0.00015735,2]
[378544839,1754910632501,-151.0,0.00015735,2]
[378544840,1754910632510,-500.0,0.00015735,2]
[378544841,1754910632519,-500.0,0.00015735,2]
[378544842,1754910632529,-500.0,0.00015735,2]
[378544844,1754910632538,-500.0,0.00015735,2]
[378544846,1754910632548,-500.0,0.00015735,2]
[378544848,1754910632557,-1438.09495884,0.00015735,2]
[378544849,1754910632567,-500.0,0.00015735,2]
[378544851,1754910632577,-500.0,0.00015735,2]
[378544852,1754910632587,-200.0,0.00015735,2]
[378544853,1754910632596,-475.89718233,0.00015735,2]
[378544854,1754910632606,-410.17924645,0.0001579,2]
[378544855,1754910632618,-89.82075355,0.0001579,2]
[378544856,1754910632628,-502.8,0.00015816,2]
[378544857,1754910632637,-500.0,0.00015845,2]
[378544858,1754910632646,-118.34034835,0.000159,2]
[378544859,1754910632658,-381.65965165,0.000159,2]
[378544860,1754910632667,-600.0,0.00016023,2]
[378544861,1754910632677,-600.0,0.00016023,2]
[378544862,1754910632686,-600.0,0.00016023,2]
[378544863,1754910632695,-486.8538262,0.00016023,2]
[378544864,1754910632706,-113.1461738,0.00016023,2]
[378544865,1754910632715,-600.0,0.00016023,2]
[378544866,1754910632726,-305.3643738,0.00016023,2]
[378544867,1754910632738,-259.3556262,0.00016023,2]
[378544868,1754910632747,-164.83,0.00016052,2]
[378544869,1754910632756,-164.83,0.00016084,2]
[378544870,1754910632765,-256.18,0.00016088,2]
[378544871,1754910632774,-157.9,0.00016091,2]
[378544872,1754910632783,-262.3443697,0.00016092,2]
[378544873,1754910632793,-927.50552116,0.00016116,2]
[378544874,1754910632906,-72.48447884,0.00016116,2]
[378544875,1754910632915,-833.47311292,0.00016116,2]
[378544876,1754910632926,-2652.85688708,0.00016116,2]
[378544877,1754910632935,-878.77201193,0.00016116,2]
[378544878,1754910632946,-301.29899819,0.00016116,2]
[378544879,1754910632961,-317.64898988,0.00016116,2]
[378544880,1754910632970,-150.99,0.00016116,2]
[378544881,1754910632980,-499.99,0.00016116,2]
[378544882,1754910632989,-1150.12,0.00016116,2]
[378544883,1754910632998,-150.99,0.00016116,2]
[378544884,1754910633007,-1260.46784568,0.00016116,2]
[378544885,1754910633020,-169.73215432,0.00016116,2]
[378544886,1754910633033,-299.99,0.00016116,2]
[378544887,1754910633043,-9999.99,0.00016116,2]
[378544888,1754910633053,-908.61,0.00016116,2]
[378544889,1754910633064,-8379.47181661,0.00016116,2]
[378544890,1754910633078,-694.09743445,0.00016116,2]
[378544891,1754910633106,-926.42074894,0.00016116,2]
[378544892,1754910633116,-164.83,0.00016116,2]
[378544893,1754910633125,-164.83,0.00016148,2]
[378544894,1754910633135,-164.83,0.0001618,2]
[378544895,1754910633145,-164.83,0.00016213,2]
[378544896,1754910633155,-167.62,0.0001629,2]
[378544897,1754910633165,-150.0,0.00016406,2]
[378544898,1754910633175,-331.18,0.00016434,2]
[378544899,1754910633184,-600.0,0.00016438,2]
[378544900,1754910633197,-600.0,0.00016438,2]
[378544901,1754910633207,-600.0,0.00016438,2]
[378544902,1754910633216,-600.0,0.00016438,2]
[378544903,1754910633225,-600.0,0.00016438,2]
[378544904,1754910633235,-600.0,0.00016438,2]
[378544905,1754910633245,-600.0,0.00016438,2]
[378544906,1754910633254,-579.25077854,0.00016438,2]
[378544907,1754910633264,-150.0,0.00016494,2]
[378544908,1754910633273,-300.0,0.00016514,2]
[378544909,1754910633283,-574.78026803,0.00016527,2]
[378544910,1754910633293,-153.89068732,0.00016528,2]
[378544911,1754910633302,-425.9806,0.00016529,2]
[378544912,1754910633311,-491.89105435,0.00016548,2]
[378544913,1754910633321,-250.0,0.00016552,2]
[378544914,1754910633331,-500.0,0.00016552,2]
[378544915,1754910633341,-502.8,0.00016569,2]
[378544916,1754910633350,-150.0,0.00016584,2]
[378544917,1754910633360,-852.12432624,0.00016617,2]
[378544918,1754910633373,-391.2107439,0.00016617,2]
[378544919,1754910633385,-211.57492986,0.00016617,2]
[378544920,1754910633394,-1125.92,0.00016626,2]
[378544921,1754910633404,-400.0,0.00016626,2]
[378544922,1754910633414,-400.4614558,0.00016626,2]
[378544923,1754910633424,-400.0,0.00016626,2]
[378544924,1754910633433,-366.18684795,0.00016626,2]
[378544925,1754910633446,-33.81315205,0.00016626,2]
[378544926,1754910633455,-219.51255439,0.00016626,2]
[378544927,1754910633465,-466.51729367,0.00016626,2]
[378544928,1754910633474,-915.96595021,0.00016626,2]
[378544929,1754910633485,-878.67404979,0.00016626,2]
[378544930,1754910633495,-291.38681545,0.00016626,2]
[378544931,1754910633507,-115.6381228,0.00016626,2]
[378544932,1754910633516,-281.19818273,0.00016626,2]
[378544933,1754910633528,-118.80181727,0.00016626,2]
[378544934,1754910633538,-400.0,0.00016626,2]
[378544935,1754910633547,-2199.73,0.00016626,2]
[378544936,1754910633557,-400.0,0.00016626,2]
[378544937,1754910633566,-400.0,0.00016626,2]
[378544938,1754910633576,-572.9,0.00016626,2]
[378544939,1754910633587,-400.0,0.00016626,2]
[378544940,1754910633597,-400.0,0.00016626,2]
[378544941,1754910633606,-450.83,0.00016626,2]
[378544942,1754910633616,-1632.68,0.00016626,2]
[378544943,1754910633626,-1242.51,0.00016626,2]
[378544944,1754910633636,-4880.84,0.00016626,2]
[378544945,1754910633645,-400.0,0.00016626,2]
[378544946,1754910633656,-403.59335172,0.00016626,2]
[378544947,1754910633665,-400.0,0.00016626,2]
[378544948,1754910633675,-3605.25,0.00016626,2]
[378544949,1754910633685,-400.0,0.00016626,2]
[378544950,1754910633695,-1234.88,0.00016626,2]
[378544951,1754910633705,-400.0,0.00016626,2]
[378544952,1754910633716,-527.5,0.00016626,2]
[378544953,1754910633725,-405.22369275,0.00016626,2]
[378544954,1754910633735,-4247.77,0.00016626,2]
[378544955,1754910633744,-7111.48,0.00016626,2]
[378544956,1754910633755,-489.07296117,0.00016626,2]
[378544957,1754910633765,-2593.58,0.00016626,2]
[378544958,1754910633774,-1819.25,0.00016626,2]
[378544959,1754910633784,-161.82403608,0.00016626,2]
[378544960,1754910633794,-1193.8,0.00016626,2]
[378544961,1754910633804,-400.0,0.00016626,2]
[378544962,1754910633814,-8325.71,0.00016626,2]
[378544963,1754910633824,-400.0,0.00016626,2]
[378544964,1754910633835,-400.0,0.00016626,2]
[378544965,1754910633845,-1423.06,0.00016626,2]
[378544966,1754910633855,-401.3,0.00016626,2]
[378544967,1754910633866,-500.0,0.00016626,2]
[378544968,1754910633876,-176.09809,0.00016626,2]
[378544969,1754910633886,-597.71,0.00016626,2]
[378544970,1754910634193,-479.542998,0.00016626,2]
[378544971,1754910634204,-405.59612711,0.00016627,2]
[378544972,1754910634214,-400.0,0.00016627,2]
[378544973,1754910634223,-401.24160346,0.00016627,2]
[378544974,1754910634233,-400.0,0.00016627,2]
[378544975,1754910634242,-514.59,0.00016627,2]
[378544976,1754910634252,-400.0,0.00016627,2]
[378544977,1754910634261,-400.66856364,0.00016627,2]
[378544978,1754910634272,-400.0,0.00016627,2]
[378544979,1754910634282,-400.0,0.00016627,2]
[378544980,1754910634292,-400.0,0.00016627,2]
[378544981,1754910634302,-1705.89,0.00016627,2]
[378544982,1754910634311,-400.34703989,0.00016627,2]
[378544983,1754910634323,-460.0,0.00016627,2]
[378544984,1754910634332,-400.0,0.00016627,2]
[378544985,1754910634341,-400.0,0.00016627,2]
[378544986,1754910634351,-400.0,0.00016627,2]
[378544987,1754910634361,-401.09246403,0.00016627,2]
[378544988,1754910634371,-403.1004584,0.00016627,2]
[378544989,1754910634383,-402.81301502,0.00016627,2]
[378544990,1754910634392,-400.0,0.00016627,2]
[378544991,1754910634403,-770.76,0.00016627,2]
[378544992,1754910634413,-400.0,0.00016627,2]
[378544993,1754910634423,-400.0,0.00016627,2]
[378544994,1754910634433,-401.72470303,0.00016627,2]
[378544995,1754910634443,-403.09203564,0.00016627,2]
[378544996,1754910634453,-244.01489265,0.00016627,2]
[378544997,1754910634462,-401.02010642,0.00016627,2]
[378544998,1754910634472,-400.0,0.00016627,2]
[378544999,1754910634481,-400.0,0.00016627,2]
[378545000,1754910634491,-400.0,0.00016627,2]
[378545001,1754910634500,-400.0,0.00016627,2]
[378545002,1754910634510,-400.0,0.00016627,2]
[378545003,1754910634519,-400.0,0.00016627,2]
[378545004,1754910634528,-400.0,0.00016627,2]
[378545005,1754910634538,-402.04890192,0.00016627,2]
[378545006,1754910634549,-400.0,0.00016627,2]
[378545007,1754910634558,-400.0,0.00016627,2]
[378545008,1754910634568,-400.0,0.00016627,2]
[378545009,1754910634578,-400.0,0.00016627,2]
[378545010,1754910634588,-400.0,0.00016627,2]
[378545011,1754910634598,-401.42630636,0.00016627,2]
[378545012,1754910634607,-414.92,0.00016627,2]
[378545013,1754910634618,-400.0,0.00016627,2]
[378545014,1754910634627,-406.96963143,0.00016627,2]
[378545015,1754910634637,-400.0,0.00016627,2]
[378545016,1754910634647,-915.52,0.00016627,2]
[378545017,1754910634657,-401.30665938,0.00016627,2]
[378545018,1754910634667,-400.0,0.00016627,2]
[378545019,1754910634676,-400.0,0.00016627,2]
[378545020,1754910634686,-683.95,0.00016627,2]
[378545021,1754910634695,-400.0,0.00016627,2]
[378545022,1754910634705,-680.96,0.00016627,2]
[378545023,1754910634715,-400.0,0.00016627,2]
[378545024,1754910634725,-400.0,0.00016627,2]
[378545025,1754910634735,-400.0,0.00016627,2]
[378545026,1754910634745,-400.0,0.00016627,2]
[378545027,1754910634755,-400.0,0.00016627,2]
[378545028,1754910634765,-585.42,0.00016627,2]
[378545029,1754910634775,-406.85948964,0.00016627,2]
[378545030,1754910634784,-402.86281523,0.00016627,2]
[378545031,1754910634794,-400.0,0.00016627,2]
[378545032,1754910634803,-949.89,0.00016627,2]
[378545033,1754910634813,-400.0,0.00016627,2]
[378545034,1754910634822,-410.92133171,0.00016627,2]
[378545035,1754910634832,-400.0,0.00016627,2]
[378545036,1754910634842,-400.0,0.00016627,2]
[378545037,1754910634852,-400.0,0.00016627,2]
[378545038,1754910634861,-400.0,0.00016627,2]
[378545039,1754910634870,-653.25,0.00016627,2]
[378545040,1754910634880,-401.59808892,0.00016627,2]
[378545041,1754910634889,-453.12299142,0.00016627,2]
[378545042,1754910634899,-400.0,0.00016627,2]
[378545043,1754910634909,-400.0,0.00016627,2]
[378545044,1754910634918,-400.0,0.00016627,2]
[378545045,1754910634928,-475.5,0.00016627,2]
[378545046,1754910634938,-400.0,0.00016627,2]
[378545047,1754910634947,-400.0,0.00016627,2]
[378545048,1754910634957,-400.0,0.00016627,2]
[378545049,1754910634966,-400.0,0.00016627,2]
[378545050,1754910634976,-400.0,0.00016627,2]
[378545051,1754910634989,-400.0,0.00016627,2]
[378545052,1754910635000,-400.0,0.00016627,2]
[378545053,1754910635011,-400.0,0.00016627,2]
[378545054,1754910635025,-400.0,0.00016627,2]
[378545055,1754910635034,-401.29528871,0.00016627,2]
[378545056,1754910635044,-400.0,0.00016627,2]
[378545057,1754910635054,-1063.32,0.00016627,2]
[378545058,1754910635064,-400.0,0.00016627,2]
[378545059,1754910635074,-481.54258198,0.00016627,2]
[378545060,1754910635084,-402.05655936,0.00016627,2]
[378545061,1754910635095,-400.0,0.00016627,2]
[378545062,1754910635106,-417.98502605,0.00016627,2]
[378545063,1754910635118,-400.0,0.00016627,2]
[378545064,1754910635127,-400.0,0.00016627,2]
[378545065,1754910635136,-400.0,0.00016627,2]
[378545066,1754910635145,-398.61487412,0.00016627,2]
[378545067,1754910635155,-400.0,0.00016627,2]
[378545068,1754910635164,-1028.79,0.00016627,2]
[378545069,1754910635174,-400.0,0.00016627,2]
[378545070,1754910635183,-400.0,0.00016627,2]
[378545071,1754910635194,-400.0,0.00016627,2]
[378545072,1754910635204,-560.67,0.00016627,2]
[378545073,1754910635215,-400.0,0.00016627,2]
[378545074,1754910635225,-405.72175725,0.00016627,2]
[378545075,1754910635235,-400.0,0.00016627,2]
[378545076,1754910635244,-800.03,0.00016627,2]
[378545077,1754910635254,-400.0,0.00016627,2]
[378545078,1754910635263,-400.0,0.00016627,2]
[378545079,1754910635273,-400.0,0.00016627,2]
[378545080,1754910635282,-400.0,0.00016627,2]
[378545081,1754910635292,-400.0,0.00016627,2]
[378545082,1754910635301,-400.0,0.00016627,2]
[378545083,1754910635310,-400.0,0.00016627,2]
[378545084,1754910635320,-822.6,0.00016627,2]
[378545085,1754910635330,-400.74426106,0.00016627,2]
[378545086,1754910635339,-400.0,0.00016627,2]
[378545087,1754910635349,-442.1036694,0.00016627,2]
[378545088,1754910635359,-402.56967646,0.00016627,2]
[378545089,1754910635369,-400.0,0.00016627,2]
[378545090,1754910635378,-1477.36,0.00016627,2]
[378545091,1754910635388,-400.0,0.00016627,2]
[378545092,1754910635398,-400.94876879,0.00016627,2]
[378545093,1754910635407,-400.0,0.00016627,2]
[378545094,1754910635416,-400.0,0.00016627,2]
[378545095,1754910635425,-400.0,0.00016627,2]
[378545096,1754910635435,-400.0,0.00016627,2]
[378545097,1754910635445,-1020.3,0.00016627,2]
[378545098,1754910635455,-315.25075753,0.00016627,2]
[378545099,1754910635465,-625.0,0.00016627,2]
[378545100,1754910635475,-400.0,0.00016627,2]
[378545101,1754910635484,-400.0,0.00016627,2]
[378545102,1754910635494,-551.02577193,0.00016627,2]
[378545103,1754910635504,-400.0,0.00016627,2]
[378545104,1754910635514,-400.0,0.00016627,2]
[378545105,1754910635523,-400.0,0.00016627,2]
[378545106,1754910635533,-418.89,0.00016627,2]
[378545107,1754910635543,-400.0,0.00016627,2]
[378545108,1754910635552,-400.0,0.00016627,2]
[378545109,1754910635563,-400.0,0.00016627,2]
[378545110,1754910635574,-400.0,0.00016627,2]
[378545111,1754910635584,-400.0,0.00016627,2]
[378545112,1754910635594,-400.0,0.00016627,2]
[378545113,1754910635606,-400.0,0.00016627,2]
[378545114,1754910635617,-303.8785544,0.00016627,2]
[378545115,1754910635627,-95.54217732,0.00016627,2]
[378545116,1754910635643,-304.45782268,0.00016627,2]
[378545117,1754910635653,-400.0,0.00016627,2]
[378545118,1754910635663,-400.0,0.00016627,2]
[378545119,1754910635672,-1851.42,0.00016627,2]
[378545120,1754910635682,-400.0,0.00016627,2]
[378545121,1754910635695,-400.0,0.00016627,2]
[378545122,1754910635705,-400.0,0.00016627,2]
[378545123,1754910635714,-400.0,0.00016627,2]
[378545124,1754910635724,-400.0,0.00016627,2]
[378545125,1754910635739,-1464.48,0.00016627,2]
[378545127,1754910635749,-400.0,0.00016627,2]
[378545129,1754910635759,-400.0,0.00016627,2]
[378545130,1754910635769,-400.0,0.00016627,2]
[378545131,1754910635778,-400.0,0.00016627,2]
[378545132,1754910635788,-401.23193761,0.00016627,2]
[378545134,1754910635798,-400.0,0.00016627,2]
[378545135,1754910635808,-400.0,0.00016627,2]
[378545136,1754910635818,-400.0,0.00016627,2]
[378545137,1754910635827,-462.46,0.00016627,2]
[378545138,1754910635837,-1660.28,0.00016627,2]
[378545139,1754910635847,-400.0,0.00016627,2]
[378545140,1754910635856,-500.0,0.00016627,2]
[378545141,1754910635866,-400.0,0.00016627,2]
[378545142,1754910635876,-400.0,0.00016627,2]
[378545143,1754910635885,-400.0,0.00016627,2]
[378545144,1754910635895,-400.0,0.00016627,2]
[378545145,1754910635904,-400.0,0.00016627,2]
[378545146,1754910635921,-400.0,0.00016627,2]
[378545148,1754910635930,-400.0,0.00016627,2]
[378545149,1754910635940,-735.97,0.00016627,2]
[378545150,1754910635949,-400.0,0.00016627,2]
[378545151,1754910635958,-400.0,0.00016627,2]
[378545152,1754910635968,-400.0,0.00016627,2]
[378545153,1754910635978,-400.0,0.00016627,2]
[378545154,1754910635988,-400.0,0.00016627,2]
[378545155,1754910635997,-402.19519453,0.00016627,2]
[378545156,1754910636006,-543.65,0.00016627,2]
[378545157,1754910636016,-400.0,0.00016627,2]
[378545158,1754910636031,-400.0,0.00016627,2]
[378545159,1754910636041,-1415.05,0.00016627,2]
[378545160,1754910636050,-407.19047201,0.00016627,2]
[378545161,1754910636059,-400.0,0.00016627,2]
[378545162,1754910636069,-400.0,0.00016627,2]
[378545163,1754910636079,-400.78079145,0.00016627,2]
[378545164,1754910636088,-497.68444457,0.00016627,2]
[378545165,1754910636097,-400.57595893,0.00016627,2]
[378545166,1754910636108,-997.62,0.00016627,2]
[378545167,1754910636118,-1058.78768438,0.00016627,2]
[378545168,1754910636531,-160.36231303,0.00016627,2]
[378545169,1754910637347,-388.0,0.000154,2]
[378545170,1754910637357,-380.0,0.0001658,2]
[378545171,1754910637367,-218.51000259,0.00016627,2]
[378545172,1754910637377,-400.0,0.00016627,2]
[378545173,1754910637386,-400.0,0.00016627,2]
[378545174,1754910637397,-1543.06950049,0.00016627,2]
[378545175,1754910637426,-77.31049951,0.00016627,2]
[378545176,1754910637436,-328.86996364,0.00016627,2]
[378545177,1754910637452,-71.13003636,0.00016627,2]
[378545178,1754910637462,-223.33133651,0.00016627,2]
[378545179,1754910637478,-176.66866349,0.00016627,2]
[378545180,1754910637491,-400.0,0.00016627,2]
[378545181,1754910637500,-400.0,0.00016627,2]
[378545182,1754910637510,-1610.0,0.00016627,2]
[378545183,1754910637519,-400.0,0.00016627,2]
[378545184,1754910637529,-564.24,0.00016627,2]
[378545185,1754910637538,-400.0,0.00016627,2]
[378545186,1754910637551,-400.0,0.00016627,2]
[378545187,1754910637561,-400.0,0.00016627,2]
[378545188,1754910637573,-400.0,0.00016627,2]
[378545189,1754910637583,-538.83256994,0.00016627,2]
[378545190,1754910637595,-194.92743006,0.00016627,2]
[378545191,1754910637605,-383.66169539,0.00016627,2]
[378545192,1754910637615,-1425.75,0.00016627,2]
[378545193,1754910637624,-400.0,0.00016627,2]
[378545194,1754910637633,-400.0,0.00016627,2]
[378545195,1754910637643,-1531.14,0.00016627,2]
[378545196,1754910637653,-3110.34,0.00016627,2]
[378545197,1754910637662,-400.0,0.00016627,2]
[378545198,1754910637672,-400.0,0.00016627,2]
[378545199,1754910637682,-400.0,0.00016627,2]
[378545200,1754910637692,-400.0,0.00016627,2]
[378545201,1754910637701,-402.32280806,0.00016627,2]
[378545202,1754910637711,-1935.41,0.00016627,2]
[378545203,1754910637721,-436.32405193,0.00016627,2]
[378545204,1754910637731,-400.0,0.00016627,2]
[378545205,1754910637741,-847.84,0.00016627,2]
[378545206,1754910637751,-2151.96,0.00016627,2]
[378545207,1754910637761,-400.0,0.00016627,2]
[378545208,1754910637771,-132.42968438,0.00016627,2]
[378545230,1754910638499,-191.42817716,0.00016626,2]
[378545239,1754910638572,-208.57182284,0.00016626,2]
[378545240,1754910638581,-400.0,0.00016626,2]
[378545241,1754910638590,-2912.47031562,0.00016627,2]
[378545242,1754910638599,-400.0,0.00016627,2]
[378545243,1754910638609,-405.33629491,0.00016627,2]
[378545244,1754910638618,-400.0,0.00016627,2]
[378545245,1754910638627,-405.82499617,0.00016627,2]
[378545246,1754910638636,-401.72002273,0.00016627,2]
[378545247,1754910638645,-400.0,0.00016627,2]
[378545248,1754910638655,-400.0,0.00016627,2]
[378545249,1754910638664,-960.22,0.00016627,2]
[378545250,1754910638673,-400.0,0.00016627,2]
[378545251,1754910638682,-400.0,0.00016627,2]
[378545252,1754910638691,-400.0,0.00016627,2]
[378545253,1754910638700,-1577.87,0.00016627,2]
[378545254,1754910638709,-400.0,0.00016627,2]
[378545255,1754910638718,-400.43405017,0.00016627,2]
[378545256,1754910638728,-401.19317197,0.00016627,2]
[378545257,1754910638737,-400.0,0.00016627,2]
[378545258,1754910638746,-400.0,0.00016627,2]
[378545259,1754910638756,-2623.19,0.00016627,2]
[378545260,1754910638765,-400.0,0.00016627,2]
[378545261,1754910638774,-400.0,0.00016627,2]
[378545262,1754910638783,-400.0,0.00016627,2]
[378545263,1754910638792,-400.0,0.00016627,2]
[378545264,1754910638801,-400.0,0.00016627,2]
[378545265,1754910638811,-2008.73,0.00016627,2]
[378545266,1754910638820,-400.0,0.00016627,2]
[378545267,1754910638829,-648.28,0.00016627,2]
[378545268,1754910638838,-400.0,0.00016627,2]
[378545269,1754910638847,-917.34,0.00016627,2]
[378545270,1754910638856,-400.0,0.00016627,2]
[378545271,1754910638865,-161.65078805,0.00016627,2]
[378545272,1754910638902,-338.34921195,0.00016627,2]
[378545273,1754910638912,-500.0,0.00016627,2]
[378545274,1754910638922,-532.08084733,0.00016627,2]
[378545275,1754910638931,-1111.1,0.00016627,2]
[378545276,1754910638940,-400.0,0.00016627,2]
[378545277,1754910638949,-400.0,0.00016627,2]
[378545278,1754910638958,-400.0,0.00016627,2]
[378545279,1754910638968,-407.65372196,0.00016627,2]
[378545280,1754910638977,-400.0,0.00016627,2]
[378545281,1754910638988,-401.23752743,0.00016627,2]
[378545282,1754910638997,-400.0,0.00016627,2]
[378545283,1754910639007,-514.3,0.00016627,2]
[378545284,1754910639017,-400.0,0.00016627,2]
[378545285,1754910639030,-400.0,0.00016627,2]
[378545286,1754910639039,-400.0,0.00016627,2]
[378545287,1754910639049,-119.14604475,0.00016627,2]
[378545288,1754910639092,-280.85395525,0.00016627,2]
[378545289,1754910639108,-496.94124731,0.00016627,2]
[378545290,1754910639118,-400.0,0.00016627,2]
[378545291,1754910639127,-673.52,0.00016627,2]
[378545292,1754910639136,-400.0,0.00016627,2]
[378545293,1754910639146,-400.0,0.00016627,2]
[378545294,1754910639155,-1139.41,0.00016627,2]
[378545295,1754910639165,-402.07222494,0.00016627,2]
[378545296,1754910639174,-400.0,0.00016627,2]
[378545297,1754910639183,-400.0,0.00016627,2]
[378545298,1754910639193,-400.0,0.00016627,2]
[378545299,1754910639202,-2010.13,0.00016627,2]
[378545300,1754910639211,-401.81885,0.00016627,2]
[378545301,1754910639220,-400.0,0.00016627,2]
[378545302,1754910639230,-490.79694103,0.00016627,2]
[378545303,1754910639239,-401.44960082,0.00016627,2]
[378545304,1754910639248,-400.0,0.00016627,2]
[378545305,1754910639257,-1475.72,0.00016627,2]
[378545306,1754910639266,-1609.63,0.00016627,2]
[378545307,1754910639275,-400.0,0.00016627,2]
[378545308,1754910639284,-400.0,0.00016627,2]
[378545309,1754910639294,-400.0,0.00016627,2]
[378545310,1754910639303,-500.0,0.00016627,2]
[378545311,1754910639312,-400.82830074,0.00016627,2]
[378545312,1754910639322,-500.0,0.00016627,2]
[378545313,1754910639331,-400.63165198,0.00016627,2]
[378545314,1754910639340,-400.0,0.00016627,2]
[378545315,1754910639349,-400.0,0.00016627,2]
[378545316,1754910639359,-434.16,0.00016627,2]
[378545317,1754910639368,-2067.59,0.00016627,2]
[378545318,1754910639377,-400.0,0.00016627,2]
[378545319,1754910639387,-5178.68,0.00016627,2]
[378545320,1754910639398,-400.0,0.00016627,2]
[378545321,1754910639407,-927.55,0.00016627,2]
[378545322,1754910639417,-400.0,0.00016627,2]
[378545323,1754910639426,-2160.67,0.00016627,2]
[378545324,1754910639436,-400.0,0.00016627,2]
[378545325,1754910639446,-400.0,0.00016627,2]
[378545326,1754910639455,-403.22120298,0.00016627,2]
[378545327,1754910639465,-400.0,0.00016627,2]
[378545328,1754910639474,-400.0,0.00016627,2]
[378545329,1754910639484,-401.7445242,0.00016627,2]
[378545330,1754910639493,-2006.49,0.00016627,2]
[378545331,1754910639503,-405.77874628,0.00016627,2]
[378545332,1754910639513,-400.0,0.00016627,2]
[378545333,1754910639524,-400.0,0.00016627,2]
[378545334,1754910639533,-776.8,0.00016627,2]
[378545335,1754910639542,-400.0,0.00016627,2]
[378545336,1754910639552,-400.0,0.00016627,2]
[378545337,1754910639561,-956.24,0.00016627,2]
[378545338,1754910639571,-400.0,0.00016627,2]
[378545339,1754910639580,-5534.62432379,0.00016627,2]
[378545342,1754910640404,-400.0,0.00016626,2]
[378545343,1754910640414,-2352.01567621,0.00016627,2]
[378545344,1754910640423,-500.0,0.00016627,2]
[378545345,1754910640433,-400.0,0.00016627,2]
[378545346,1754910640442,-2403.48432379,0.00016627,2]
[378545347,1754910640453,-1375.37567621,0.00016627,2]
[378545348,1754910640463,-400.0,0.00016627,2]
[378545349,1754910640472,-1117.91,0.00016627,2]